bitfinex/quotes_BTCUSD_20230106
["timestamp","ask_amount","ask_price","bid_price","bid_amount"]
[1672965991863,2.35937384,16861.0,16860.0,0.17545935]
[1672965992362,1.74777284,16861.0,16860.0,0.17545935]
[1672965994578,2.35937384,16861.0,16860.0,0.17545935]
[1672965994834,1.74777284,16861.0,16860.0,0.17545935]
[1672965995396,1.21392984,16861.0,16860.0,0.17545935]
[1672965997683,1.21392984,16861.0,16860.0,0.17617701]
[1672965997926,1.21392984,16861.0,16860.0,0.17545935]
[1672966001857,1.82553084,16861.0,16860.0,0.17545935]
[1672966002379,1.21392984,16861.0,16860.0,0.17545935]
[1672966006496,1.21392984,16861.0,16860.0,0.17535777]
[1672966008844,1.74800432,16861.0,16860.0,0.17535777]
[1672966009372,1.72826148,16861.0,16860.0,0.17535777]
[1672966009683,1.72826148,16861.0,16860.0,0.69463405]
[1672966013621,2.33986248,16861.0,16860.0,0.69463405]
[1672966014150,1.72826148,16861.0,16860.0,0.69463405]
[1672966018585,1.194187,16861.0,16860.0,0.69463405]
[1672966020365,1.72833647,16861.0,16860.0,0.69463405]
[1672966020621,2.33993747,16861.0,16860.0,0.69463405]
[1672966020846,1.72833647,16861.0,16860.0,0.69463405]
[1672966024482,1.13523347,16861.0,16860.0,0.69463405]
[1672966030029,1.13523347,16861.0,16860.0,8.19463405]
[1672966030285,1.13523347,16861.0,16860.0,7.67535777]
[1672966030541,1.72831747,16861.0,16860.0,7.67535777]
[1672966031054,1.72831747,16861.0,16860.0,0.1752775]
[1672966031345,2.33991847,16861.0,16860.0,0.1752775]
[1672966031613,1.72817934,16861.0,16860.0,0.1752775]
[1672966032961,1.72817934,16861.0,16860.0,0.17599516]
[1672966033191,1.72817934,16861.0,16860.0,0.1752775]
[1672966047528,2.33978034,16861.0,16860.0,0.1752775]
[1672966048020,2.33978034,16861.0,16860.0,7.6752775]
[1672966048021,1.72817934,16861.0,16860.0,7.6752775]
[1672966049038,1.72817934,16861.0,16860.0,0.1752775]
[1672966049306,1.72817934,16861.0,16860.0,7.6752775]
[1672966050271,1.13509534,16861.0,16860.0,7.6752775]
[1672966050835,0.54201134,16861.0,16860.0,7.6752775]
[1672966054130,0.00786187,16861.0,16860.0,7.6752775]
[1672966054620,0.00786187,16861.0,16860.0,7.67519991]
[1672966057129,0.00786187,16861.0,16860.0,7.67591757]
[1672966064494,0.00786187,16861.0,16860.0,8.23172381]
[1672966065002,0.45276823,16861.0,16860.0,8.23172381]
[1672966067373,0.45276823,16861.0,16860.0,8.23100615]
[1672966071417,0.45276823,16861.0,16860.0,8.23286169]
[1672966071668,0.45276823,16861.0,16860.0,8.29924869]
[1672966071921,0.45276823,16861.0,16860.0,8.23286169]
[1672966072722,0.45276823,16861.0,16860.0,8.29924869]
[1672966073232,0.45276823,16861.0,16860.0,8.23286169]
[1672966075540,0.45276823,16861.0,16860.0,0.73100615]
[1672966076046,0.45276823,16861.0,16860.0,8.23100615]
[1672966076294,0.45276823,16861.0,16860.0,8.23109893]
[1672966076552,0.45276823,16861.0,16860.0,8.23100615]
[1672966077052,0.45276823,16861.0,16860.0,0.73100615]
[1672966077312,0.45268521,16861.0,16860.0,0.73100615]
[1672966077519,0.45268521,16861.0,16860.0,8.23100615]
[1672966077967,0.00786187,16861.0,16860.0,8.23100615]
[1672966078481,0.45268554,16861.0,16860.0,8.23277354]
[1672966078736,0.45268554,16861.0,16860.0,11.06383587]
[1672966078996,0.8085296,16861.0,16860.0,11.86631199]
[1672966079260,0.45264185,16861.0,16860.0,11.86631199]
[1672966079511,0.18577386,16861.0,16860.0,11.86631199]
[1672966080297,0.18577386,16861.0,16860.0,12.16631199]
[1672966081045,0.00786187,16861.0,16860.0,11.46753563]
[1672966081291,0.00786187,16861.0,16860.0,12.06915463]
[1672966081564,0.00786187,16861.0,16860.0,12.69811778]
[1672966081850,0.18577386,16861.0,16860.0,11.80499878]
[1672966082209,0.00786187,16861.0,16860.0,12.10499878]
[1672966083399,0.00786187,16861.0,16860.0,11.47603563]
[1672966083663,0.00786187,16861.0,16860.0,12.06915463]
[1672966083918,0.00786187,16861.0,16860.0,12.62069187]
[1672966084176,0.00786187,16861.0,16860.0,12.02757287]
[1672966084896,0.00786187,16861.0,16860.0,11.72757287]
[1672966085672,0.00786187,16861.0,16860.0,12.02757287]
[1672966086437,0.00786187,16861.0,16860.0,11.72757287]
[1672966087323,0.00786187,16861.0,16860.0,12.02757287]
[1672966087824,0.00786187,16861.0,16860.0,12.62069187]
[1672966090379,0.00786187,16861.0,16860.0,12.06915463]
[1672966090635,0.00786187,16861.0,16860.0,12.66818447]
[1672966091138,0.00786187,16861.0,16860.0,12.07506547]
[1672966092765,0.00786187,16861.0,16860.0,11.47603563]
[1672966093266,0.00786187,16861.0,16860.0,11.98987539]
[1672966093554,0.00786187,16861.0,16860.0,12.06915463]
[1672966095085,0.00786187,16861.0,16860.0,11.47603563]
[1672966095357,0.00786187,16861.0,16860.0,12.18235473]
[1672966096052,0.00786187,16861.0,16860.0,11.47603563]
[1672966096301,0.00786187,16861.0,16860.0,12.07326937]
[1672966097313,0.00786187,16861.0,16860.0,11.47603563]
[1672966097537,0.00786187,16861.0,16860.0,12.13380314]
[1672966098053,0.00786187,16861.0,16860.0,12.72692214]
[1672966098797,0.00786187,16861.0,16860.0,12.06915463]
[1672966099063,0.00786187,16861.0,16860.0,12.36571463]
[1672966099860,0.00786187,16861.0,16860.0,12.06915463]
[1672966100113,0.00786187,16861.0,16860.0,12.71391788]
[1672966100362,0.00786187,16861.0,16860.0,12.12079888]
[1672966101601,0.00786187,16861.0,16860.0,11.67603563]
[1672966101884,0.00786187,16861.0,16860.0,12.26915463]
[1672966102144,0.00786187,16861.0,16860.0,12.85771533]
[1672966102663,0.00786187,16861.0,16860.0,12.26915463]
[1672966109426,0.00786187,16861.0,16860.0,13.06828059]
[1672966109681,0.00786187,16861.0,16860.0,12.26915463]
[1672966110209,1e-08,16861.0,16860.0,13.00881552]
[1672966110480,1e-08,16861.0,16860.0,13.7434886]
[1672966110732,0.02266171,16863.0,16861.0,0.50005999]
[1672966111000,0.02266171,16863.0,16862.0,5.11872769]
[1672966111260,0.02266171,16863.0,16862.0,5.18510069]
[1672966111518,0.02266171,16863.0,16862.0,12.68510069]
[1672966112040,0.02266171,16863.0,16862.0,12.7592972]
[1672966112288,0.02266171,16863.0,16862.0,13.4592972]
[1672966112792,0.02266171,16863.0,16862.0,13.5992972]
[1672966114569,0.02266171,16863.0,16862.0,14.91810697]
[1672966114816,0.02266171,16863.0,16862.0,13.77632326]
[1672966115060,0.02266171,16863.0,16862.0,13.63632326]
[1672966115325,0.02366171,16863.0,16862.0,13.77432326]
[1672966115582,0.02266171,16863.0,16862.0,13.63632326]
[1672966115842,0.02366171,16863.0,16862.0,14.04086235]
[1672966116360,0.02366171,16863.0,16862.0,14.91709469]
[1672966116616,0.02366171,16863.0,16862.0,14.04086235]
[1672966116930,0.02366171,16863.0,16862.0,13.77532326]
[1672966117359,0.02366171,16863.0,16862.0,14.91709048]
[1672966117892,0.02366171,16863.0,16862.0,15.21357048]
[1672966118412,0.02366171,16863.0,16862.0,14.33734235]
[1672966118671,0.02366171,16863.0,16862.0,15.2135714]
[1672966118920,0.02366171,16863.0,16862.0,14.07180326]
[1672966120151,0.02366171,16863.0,16862.0,14.33734235]
[1672966120406,0.02366171,16863.0,16862.0,15.21356142]
[1672966120913,0.02366171,16863.0,16862.0,14.94802233]
[1672966122184,0.02366171,16863.0,16862.0,16.08977632]
[1672966122437,0.02366171,16863.0,16862.0,14.94802233]
[1672966122689,0.02366171,16863.0,16862.0,15.21356142]
[1672966122942,0.02366171,16863.0,16862.0,14.94802233]
[1672966125465,0.02366171,16863.0,16862.0,16.0897777]
[1672966125722,0.02366171,16863.0,16862.0,16.0897677]
[1672966126493,0.02366171,16863.0,16862.0,16.26679436]
[1672966127765,0.02366171,16863.0,16862.0,15.97032436]
[1672966128518,0.02366171,16863.0,16862.0,16.41560821]
[1672966128769,0.02366171,16863.0,16862.0,15.96980556]
[1672966129019,0.02366171,16863.0,16862.0,16.41508941]
[1672966129280,0.02366171,16863.0,16862.0,16.75006912]
[1672966129529,0.02366171,16863.0,16862.0,17.01508517]
[1672966129775,0.02366171,16863.0,16862.0,17.31151517]
[1672966130532,0.02498345,16865.0,16864.0,0.0452631]
[1672966130782,0.02498345,16865.0,16864.0,6.04037402]
[1672966131037,0.02498345,16865.0,16864.0,5.93006157]
[1672966131279,0.02498345,16865.0,16864.0,13.43006157]
[1672966132327,0.02598345,16865.0,16864.0,13.56906157]
[1672966133072,0.02498345,16865.0,16864.0,13.43006157]
[1672966134335,0.02598345,16865.0,16864.0,13.56906157]
[1672966134582,0.02498345,16865.0,16864.0,13.43006157]
[1672966134841,0.02598345,16865.0,16864.0,13.56906157]
[1672966135454,0.02498345,16865.0,16864.0,13.43006157]
[1672966135716,0.02498345,16865.0,16864.0,13.56906157]
[1672966135717,0.02598345,16865.0,16864.0,13.56906157]
[1672966136142,0.02498345,16865.0,16864.0,13.43006157]
[1672966136408,0.02598345,16865.0,16864.0,13.56906157]
[1672966137158,0.02498345,16865.0,16864.0,13.43006157]
[1672966137432,0.02598345,16865.0,16864.0,13.56906157]
[1672966137684,0.02498345,16865.0,16864.0,13.43006157]
[1672966137939,0.02598345,16865.0,16864.0,14.1536939]
[1672966138201,0.02598345,16865.0,16864.0,13.56906157]
[1672966138461,0.02598345,16865.0,16864.0,13.43006157]
[1672966138750,0.02498345,16865.0,16864.0,13.43006157]
[1672966139009,0.02598345,16865.0,16864.0,13.56906157]
[1672966139263,0.02498345,16865.0,16864.0,13.94135262]
[1672966140018,0.02498345,16865.0,16864.0,13.34837362]
[1672966140019,0.02498345,16865.0,16864.0,12.83708257]
[1672966140298,0.02498345,16865.0,16864.0,13.34135045]
[1672966140554,0.02598345,16865.0,16864.0,12.38737145]
[1672966140814,0.02498345,16865.0,16864.0,12.24837145]
[1672966141060,0.02598345,16865.0,16864.0,11.54837145]
[1672966141321,0.02498345,16865.0,16864.0,11.54159245]
[1672966141583,0.02598345,16865.0,16864.0,11.68059245]
[1672966141845,0.02498345,16865.0,16864.0,11.84159245]
[1672966142099,0.0263033,16866.0,16864.0,13.69409161]
[1672966142385,0.0263033,16866.0,16865.0,2.03794333]
[1672966142618,0.17736263,16872.0,16866.0,0.5]
[1672966142875,0.36657849,16873.0,16871.0,1.2]
[1672966142876,0.0201,16873.0,16871.0,1.2]
[1672966143142,0.0201,16873.0,16872.0,2.18246592]
[1672966143396,0.00559312,16873.0,16872.0,2.19096592]
[1672966143732,0.69823619,16877.0,16872.0,2.72669336]
[1672966143918,0.53488398,16877.0,16875.0,0.2]
[1672966144167,0.53488398,16877.0,16873.0,1.13926792]
[1672966144168,0.69316193,16874.0,16873.0,1.13926792]
[1672966144433,0.6157309,16875.0,16873.0,1.10244767]
[1672966144705,0.6157309,16875.0,16873.0,1.73330368]
[1672966144997,0.44340657,16877.0,16874.0,0.066271]
[1672966145249,0.17736263,16876.0,16874.0,0.63076792]
[1672966145500,0.51433583,16875.0,16874.0,0.59394767]
[1672966145777,0.51433583,16875.0,16874.0,1.30244767]
[1672966146346,1.53596857,16876.0,16874.0,0.7]
[1672966146625,1.0464609,16875.0,16874.0,0.7]
[1672966146872,0.44340657,16876.0,16874.0,0.7]
[1672966147133,0.71323221,16876.0,16874.0,1.43494767]
[1672966147975,0.71323221,16876.0,16874.0,1.29394767]
[1672966148163,0.71323221,16876.0,16874.0,1.39694767]
[1672966148429,0.89650752,16877.0,16875.0,0.6418457]
[1672966148701,0.71914489,16877.0,16875.0,1.25286164]
[1672966148965,0.89650752,16877.0,16875.0,1.25281066]
[1672966149237,0.52379315,16876.0,16875.0,0.7]
[1672966149765,0.52379315,16876.0,16875.0,0.808]
[1672966150069,0.17771263,16878.0,16875.0,2.52660861]
[1672966150275,0.00035,16878.0,16876.0,2.14751913]
[1672966150538,0.00035,16878.0,16877.0,0.55419024]
[1672966150808,0.00035,16878.0,16876.0,2.84805678]
[1672966151119,0.60152042,16878.0,16876.0,2.84805678]
[1672966151333,0.00035,16878.0,16876.0,2.84805678]
[1672966151857,0.67409874,16878.0,16877.0,0.7]
[1672966151913,0.23802789,16878.0,16877.0,0.7]
[1672966152099,1.98468857,16878.0,16877.0,0.7]
[1672966152340,1.99107459,16878.0,16877.0,0.7]
[1672966152606,1.99107459,16878.0,16877.0,0.70009595]
[1672966152607,1.31371196,16878.0,16877.0,0.70009595]
[1672966152914,0.70211096,16878.0,16877.0,0.7]
[1672966153128,1.20211096,16878.0,16877.0,0.705]
[1672966153389,0.69711096,16878.0,16877.0,0.705]
[1672966154184,1.93900203,16880.0,16877.0,1.84250372]
[1672966154433,1.08053509,16880.0,16877.0,1.84259967]
[1672966154711,0.52046342,16879.0,16877.0,1.84259967]
[1672966154953,0.88832429,16880.0,16878.0,0.53800359]
[1672966155219,0.88832429,16880.0,16879.0,9.594e-05]
[1672966155600,0.2501,16880.0,16879.0,0.44853594]
[1672966155782,0.2501,16880.0,16879.0,1.59597296]
[1672966156293,0.53274597,16880.0,16879.0,2.29597296]
[1672966156566,0.0001,16880.0,16879.0,2.3065396]
[1672966157334,0.62938024,16880.0,16879.0,1.30494767]
[1672966157596,0.5319928,16880.0,16879.0,0.711]
[1672966157849,1.1435938,16880.0,16879.0,0.711]
[1672966158388,1.14368974,16880.0,16879.0,0.7]
[1672966158639,1.14368974,16880.0,16879.0,0.71]
[1672966159172,1.1435938,16880.0,16879.0,0.71]
[1672966160741,1.14368974,16880.0,16879.0,0.71]
[1672966160995,1.44189183,16880.0,16879.0,0.71]
[1672966161245,1.72473689,16880.0,16879.0,0.71]
[1672966161495,1.20421394,16880.0,16879.0,0.01]
[1672966161761,1.86893726,16880.0,16879.0,0.01]
[1672966162526,0.611701,16880.0,16879.0,0.01]
[1672966162796,0.0001,16880.0,16879.0,0.01]
[1672966163542,0.0001,16880.0,16879.0,1.15578828]
[1672966163793,0.0001,16880.0,16879.0,1.75017325]
[1672966164048,0.0001,16880.0,16879.0,2.8916849]
[1672966164581,0.0001,16880.0,16879.0,3.51640951]
[1672966164843,0.0001,16880.0,16879.0,3.44517351]
[1672966165117,0.0001,16880.0,16879.0,2.8866849]
[1672966167458,0.0001,16880.0,16879.0,3.44452468]
[1672966167982,0.00019594,16880.0,16879.0,2.44452468]
[1672966168244,0.0001,16880.0,16879.0,1.8866849]
[1672966173511,0.0001,16880.0,16879.0,1.29894767]
[1672966174071,0.0001,16880.0,16879.0,1.85595836]
[1672966174328,0.0001,16880.0,16879.0,2.56441324]
[1672966174591,0.0001,16880.0,16879.0,2.00740255]
[1672966175306,0.0001,16880.0,16879.0,2.56450835]
[1672966175572,0.0001,16880.0,16879.0,2.00740255]
[1672966176072,0.52997927,16880.0,16879.0,1.29894767]
[1672966176319,0.57792923,16880.0,16879.0,1.29894767]
[1672966176570,2.37436423,16880.0,16879.0,1.29894767]
[1672966176818,2.34862668,16880.0,16879.0,0.705]
[1672966177073,2.41654692,16880.0,16879.0,0.005]
[1672966177355,2.62951872,16880.0,16879.0,0.005]
[1672966178133,2.62974736,16880.0,16879.0,0.005]
[1672966178391,2.27564668,16880.0,16879.0,0.005]
[1672966178641,1.83227028,16880.0,16879.0,0.005]
[1672966179018,2.36641975,16880.0,16879.0,0.005]
[1672966179428,1.75481875,16880.0,16879.0,0.005]
[1672966180198,2.34953739,16880.0,16879.0,0.005]
[1672966180455,2.13227028,16880.0,16879.0,0.005]
[1672966181213,1.52066928,16880.0,16879.0,0.005]
[1672966181464,2.62062594,16880.0,16875.0,8.0]
[1672966181740,0.4433628,16876.0,16875.0,8.0]
[1672966181996,0.17734512,16876.0,16875.0,9.14872576]
[1672966182245,0.17734512,16878.0,16875.0,10.21497976]
[1672966182502,0.17734512,16878.0,16877.0,0.58026555]
[1672966182883,0.17734512,16878.0,16877.0,1.13699525]
[1672966183040,0.4433628,16878.0,16876.0,1.15014899]
[1672966183302,0.17735773,16877.0,16876.0,1.71791374]
[1672966184385,0.17735773,16877.0,16876.0,0.59394767]
[1672966184630,1.63230247,16877.0,16876.0,0.64394767]
[1672966185139,1.80963498,16877.0,16876.0,0.64394767]
[1672966186936,0.45639176,16877.0,16876.0,0.64394767]
[1672966187426,0.63370792,16877.0,16876.0,0.64394767]
[1672966187685,1.22622992,16877.0,16876.0,0.64394767]
[1672966187932,1.66959272,16877.0,16876.0,0.05]
[1672966188204,1.81875192,16877.0,16876.0,0.05]
[1672966188452,1.81884786,16877.0,16876.0,0.05]
[1672966188706,2.26211472,16877.0,16876.0,0.05]
[1672966188965,2.26211472,16877.0,16876.0,0.71583702]
[1672966189257,1.81875192,16877.0,16876.0,0.71583702]
[1672966189754,1.81875192,16877.0,16876.0,1.34623531]
[1672966190010,1.64143671,16877.0,16876.0,0.71574798]
[1672966190267,1.99612695,16877.0,16876.0,0.71574798]
[1672966190752,0.45639271,16877.0,16876.0,2.94019957]
[1672966190753,0.013,16877.0,16876.0,2.97583891]
[1672966191024,0.013,16877.0,16876.0,3.05059891]
[1672966193339,0.013,16877.0,16876.0,3.01495957]
[1672966194866,0.19037503,16877.0,16876.0,3.01495957]
[1672966195642,0.19037503,16877.0,16876.0,3.00645957]
[1672966196682,0.19037503,16877.0,16876.0,2.94019957]
[1672966196935,0.45639271,16877.0,16876.0,2.94019957]
[1672966197696,0.013,16877.0,16876.0,3.00645957]
[1672966199246,0.013,16877.0,16876.0,2.37595565]
[1672966201532,0.013,16877.0,16876.0,2.97885727]
[1672966201778,0.013,16877.0,16876.0,2.96690127]
[1672966202034,0.013,16877.0,16876.0,3.55945827]
[1672966203597,0.013,16877.0,16876.0,4.15201527]
[1672966203879,0.013,16877.0,16876.0,4.45201527]
[1672966204712,0.013,16877.0,16876.0,4.24911365]
[1672966204904,0.013,16877.0,16876.0,3.65655665]
[1672966205167,0.19037503,16877.0,16876.0,2.99773965]
[1672966205684,0.19037503,16877.0,16876.0,1.63190263]
[1672966205997,0.45639271,16877.0,16876.0,1.63190263]
[1672966206454,0.45639271,16877.0,16876.0,2.13190263]
[1672966206708,0.45639271,16877.0,16876.0,1.63190263]
[1672966207218,0.81108295,16877.0,16876.0,1.63190263]
[1672966207479,0.63370792,16877.0,16876.0,1.63190263]
[1672966207753,0.81115019,16877.0,16876.0,1.93190263]
[1672966208014,0.63370792,16877.0,16876.0,2.13190263]
[1672966208272,0.81115037,16877.0,16876.0,2.13190263]
[1672966208530,0.45646013,16877.0,16876.0,2.13190263]
[1672966209047,0.45646013,16877.0,16876.0,1.63190263]
[1672966209347,1.22622992,16877.0,16876.0,1.63190263]
[1672966210374,1.22622992,16877.0,16876.0,0.63190263]
[1672966211152,1.99609704,16877.0,16876.0,0.63190263]
[1672966211937,1.66986809,16877.0,16876.0,0.63190263]
[1672966212196,1.22650312,16877.0,16876.0,0.63190263]
[1672966212474,1.22650312,16877.0,16876.0,1.70893818]
[1672966212731,1.22650312,16877.0,16876.0,1.20893818]
[1672966212732,0.63398112,16877.0,16876.0,1.20893818]
[1672966213250,0.81105304,16877.0,16876.0,1.20893818]
[1672966213514,1.66991156,16877.0,16876.0,1.20893818]
[1672966213739,1.40357504,16877.0,16876.0,1.20893818]
[1672966214549,1.64150274,16877.0,16876.0,1.20893818]
[1672966214816,1.99655095,16877.0,16876.0,1.20893818]
[1672966215150,1.6414068,16877.0,16876.0,1.20893818]
[1672966217177,1.64150274,16877.0,16876.0,1.20893818]
[1672966217678,1.6414068,16877.0,16876.0,1.20893818]
[1672966217948,1.6414068,16877.0,16876.0,0.63190263]
[1672966218212,1.64150274,16877.0,16876.0,0.63190263]
[1672966218470,1.6414068,16877.0,16876.0,0.63190263]
[1672966222090,1.0488848,16877.0,16876.0,1.16274697]
[1672966222348,1.0488848,16877.0,16876.0,1.56274697]
[1672966222899,1.0488848,16877.0,16876.0,1.16274697]
[1672966224725,1.0488848,16877.0,16876.0,1.16266392]
[1672966225239,0.605522,16877.0,16876.0,1.16266392]
[1672966225748,0.605522,16877.0,16876.0,0.63181958]
[1672966226016,1.198044,16877.0,16876.0,0.63181958]
[1672966227321,1.19813994,16877.0,16876.0,0.63181958]
[1672966227582,1.198044,16877.0,16876.0,0.63181958]
[1672966230456,2.90251622,16877.0,16876.0,0.63181958]
[1672966230763,2.98208186,16877.0,16876.0,0.63181958]
[1672966231522,2.98208186,16877.0,16876.0,0.03787191]
[1672966231776,3.51525336,16877.0,16876.0,0.03787191]
[1672966232539,2.98208186,16877.0,16876.0,0.03787191]
[1672966234902,3.51504766,16877.0,16876.0,0.03787191]
[1672966235422,2.92252566,16877.0,16876.0,0.03787191]
[1672966235976,2.31092466,16877.0,16876.0,0.03787191]
[1672966236984,2.92252566,16877.0,16876.0,0.03787191]
[1672966237347,2.31092466,16877.0,16876.0,0.03787191]
[1672966238856,2.3110206,16877.0,16876.0,0.03787191]
[1672966239108,2.31092466,16877.0,16876.0,0.03787191]
[1672966240162,2.3110206,16877.0,16876.0,0.03787191]
[1672966240928,2.31092466,16877.0,16876.0,0.03787191]
[1672966241258,2.3110206,16877.0,16876.0,0.03787191]
[1672966241436,2.31092466,16877.0,16876.0,0.03787191]
[1672966242211,2.3110206,16877.0,16876.0,0.03787191]
[1672966242475,2.9035426,16877.0,16876.0,0.03787191]
[1672966242737,3.51504766,16877.0,16876.0,0.03787191]
[1672966243254,2.90344666,16877.0,16876.0,0.03787191]
[1672966243513,2.31092466,16877.0,16876.0,0.03787191]
[1672966246104,2.92252566,16877.0,16876.0,0.03787191]
[1672966246613,2.31092466,16877.0,16876.0,0.03787191]
[1672966247121,2.3110206,16877.0,16876.0,0.03787191]
[1672966247383,2.31092466,16877.0,16876.0,0.03787191]
[1672966247641,2.92252566,16877.0,16876.0,0.03787191]
[1672966248174,2.31092466,16877.0,16876.0,0.03787191]
[1672966248426,2.31092466,16877.0,16876.0,0.0377903]
[1672966248685,2.31092466,16877.0,16876.0,0.67054679]
[1672966249186,1.77786292,16877.0,16876.0,0.67054679]
[1672966250448,1.198044,16877.0,16876.0,0.67054679]
[1672966250703,0.605522,16877.0,16876.0,0.67054679]
[1672966251213,1.217123,16877.0,16876.0,0.67054679]
[1672966251734,0.605522,16877.0,16876.0,0.67054679]
[1672966252731,0.013,16877.0,16876.0,0.67054679]
[1672966253524,0.013,16877.0,16876.0,1.27271004]
[1672966253525,0.81281088,16877.0,16876.0,1.27271004]
[1672966253775,0.45733881,16877.0,16876.0,1.33897004]
[1672966254032,0.45733881,16877.0,16876.0,1.83897004]
[1672966254298,0.81281065,16877.0,16876.0,1.83897004]
[1672966254794,0.81281065,16877.0,16876.0,1.77271004]
[1672966255048,0.81281065,16877.0,16876.0,1.88181803]
[1672966255302,0.81281065,16877.0,16876.0,1.94807803]
[1672966255811,1.07937145,16877.0,16876.0,1.94807803]
[1672966256065,0.63503264,16877.0,16876.0,2.50182621]
[1672966256320,0.63503264,16877.0,16876.0,3.79129976]
[1672966256574,0.45725944,16877.0,16876.0,3.79129976]
[1672966261273,1.33908338,16877.0,16876.0,0.74084596]
[1672966261539,2.12846239,16877.0,16876.0,0.14689829]
[1672966261806,1.772742,16877.0,16876.0,0.14689829]
[1672966262050,1.3285558,16877.0,16876.0,0.14689829]
[1672966262311,2.45423548,16877.0,16876.0,0.14689829]
[1672966263085,1.84263448,16877.0,16876.0,0.14689829]
[1672966263305,2.45413954,16877.0,16876.0,0.14689829]
[1672966263562,1.84253854,16877.0,16876.0,0.14689829]
[1672966263807,2.45413954,16877.0,16876.0,0.14689829]
[1672966264055,1.84253854,16877.0,16876.0,0.14689829]
[1672966264338,2.45413954,16877.0,16876.0,0.14689829]
[1672966265070,1.84253854,16877.0,16876.0,0.14689829]
[1672966265572,2.45423548,16877.0,16876.0,0.14689829]
[1672966266078,1.84253854,16877.0,16876.0,0.14689829]
[1672966267358,2.43506054,16877.0,16876.0,0.14689829]
[1672966268898,3.02758254,16877.0,16876.0,0.14689829]
[1672966269945,2.43506054,16877.0,16876.0,0.14689829]
[1672966270195,1.9019988,16877.0,16876.0,0.14689829]
[1672966271402,2.5135998,16877.0,16876.0,0.14689829]
[1672966271895,1.9019988,16877.0,16876.0,0.14689829]
[1672966272641,1.9019988,16877.0,16876.0,0.14679299]
[1672966272904,2.94260294,16877.0,16876.0,0.14679299]
[1672966273164,2.40226294,16877.0,16876.0,0.14679299]
[1672966273422,2.70226294,16877.0,16876.0,0.14679299]
[1672966273684,3.33303086,16877.0,16876.0,0.14679299]
[1672966273939,3.32003086,16877.0,16876.0,0.10910799]
[1672966274448,2.82526294,16877.0,16876.0,0.11210799]
[1672966274720,2.68926294,16877.0,16876.0,0.10910799]
[1672966274987,2.82526294,16877.0,16876.0,0.10910799]
[1672966275508,2.68926294,16877.0,16876.0,0.10910799]
[1672966276039,2.82526294,16877.0,16876.0,0.11210799]
[1672966276789,3.43886658,16877.0,16876.0,0.11210799]
[1672966277065,2.68926294,16877.0,16876.0,0.10910799]
[1672966277292,2.82526294,16877.0,16876.0,0.11310799]
[1672966277550,2.68920294,16877.0,16876.0,0.10910799]
[1672966277809,2.82520294,16877.0,16876.0,0.11210799]
[1672966278067,2.68920294,16877.0,16876.0,0.10910799]
[1672966278330,2.82520294,16877.0,16876.0,0.11310799]
[1672966278593,2.82520294,16877.0,16876.0,0.10910799]
[1672966278848,2.96120294,16877.0,16876.0,0.11210799]
[1672966279096,2.68920294,16877.0,16876.0,0.0978972]
[1672966280155,2.82520294,16877.0,16876.0,0.1008972]
[1672966282144,3.81077049,16877.0,16876.0,0.1008972]
[1672966282422,4.11077049,16877.0,16876.0,0.1008972]
[1672966284486,3.51213551,16877.0,16876.0,0.1008972]
[1672966285736,3.21213551,16877.0,16876.0,0.1008972]
[1672966287333,3.714596,16877.0,16876.0,0.60945764]
[1672966287571,3.18271665,16877.0,16876.0,0.60945764]
[1672966288850,3.04671665,16877.0,16876.0,0.60645764]
[1672966289111,3.04671665,16877.0,16876.0,0.61245764]
[1672966289112,2.48211565,16877.0,16876.0,0.61245764]
[1672966289374,3.09371665,16877.0,16876.0,0.61245764]
[1672966290174,2.48211565,16877.0,16876.0,0.61245764]
[1672966291258,2.33280538,16877.0,16876.0,0.61245764]
[1672966291715,2.68734928,16877.0,16876.0,0.61245764]
[1672966291971,2.68744522,16877.0,16876.0,0.61245764]
[1672966292243,2.68734928,16877.0,16876.0,0.61245764]
[1672966292537,2.33280538,16877.0,16876.0,0.61245764]
[1672966293291,2.33290132,16877.0,16876.0,0.61245764]
[1672966293554,2.33290132,16877.0,16876.0,0.1038972]
[1672966293813,2.94450232,16877.0,16876.0,0.1038972]
[1672966294099,3.53702432,16877.0,16876.0,0.1038972]
[1672966294357,3.09381259,16877.0,16876.0,0.1038972]
[1672966295412,2.50119465,16877.0,16876.0,0.1038972]
[1672966295910,1.88959365,16877.0,16876.0,0.1038972]
[1672966296199,2.48211565,16877.0,16876.0,0.1038972]
[1672966296469,1.88959365,16877.0,16876.0,0.1038972]
[1672966296987,2.3329471,16877.0,16876.0,0.1038972]
[1672966297823,1.88959365,16877.0,16876.0,0.1038972]
[1672966299612,1.88968959,16877.0,16876.0,0.1038972]
[1672966299873,2.42156894,16877.0,16876.0,0.1038972]
[1672966300130,2.421473,16877.0,16876.0,0.1038972]
[1672966300658,2.50119465,16877.0,16876.0,0.1038972]
[1672966301452,3.625596,16877.0,16876.0,0.1038972]
[1672966302426,3.625596,16877.0,16876.0,0.10379642]
[1672966302645,3.013995,16877.0,16876.0,0.10379642]
[1672966302919,3.625596,16877.0,16876.0,0.10379642]
[1672966303409,3.033074,16877.0,16876.0,0.10379642]
[1672966303695,2.42156894,16877.0,16876.0,0.10379642]
[1672966303966,3.033074,16877.0,16876.0,0.10379642]
[1672966304770,3.03316994,16877.0,16876.0,0.10379642]
[1672966305256,3.033074,16877.0,16876.0,0.10379642]
[1672966305761,2.42156894,16877.0,16876.0,0.10379642]
[1672966306011,2.421473,16877.0,16876.0,0.10379642]
[1672966306519,3.013995,16877.0,16876.0,0.10379642]
[1672966306826,3.01409094,16877.0,16876.0,0.10379642]
[1672966307027,3.62569194,16877.0,16876.0,0.10379642]
[1672966307264,3.625596,16877.0,16876.0,0.10379642]
[1672966307517,2.421473,16877.0,16876.0,0.10379642]
[1672966308542,2.42139591,16877.0,16876.0,0.10379642]
[1672966308942,1.88951656,16877.0,16876.0,0.10379642]
[1672966310228,2.42139591,16877.0,16876.0,0.10379642]
[1672966311459,2.42139591,16877.0,16876.0,0.73456434]
[1672966311460,1.88951656,16877.0,16876.0,0.73456434]
[1672966312215,2.42149185,16877.0,16876.0,0.10379642]
[1672966312475,2.42139591,16877.0,16876.0,0.10379642]
[1672966312723,2.42139591,16877.0,16876.0,0.73456434]
[1672966312976,1.88951656,16877.0,16876.0,0.73456434]
[1672966313498,1.88951656,16877.0,16876.0,0.10379642]
[1672966313756,1.88951656,16877.0,16876.0,0.73456434]
[1672966314261,2.42139591,16877.0,16876.0,0.10379642]
[1672966315038,2.42139591,16877.0,16876.0,0.73456434]
[1672966315039,1.76378626,16877.0,16876.0,0.73456434]
[1672966315309,0.63938491,16877.0,16876.0,0.73456434]
[1672966315569,0.63938491,16877.0,16876.0,1.32498463]
[1672966315845,1.0832385,16877.0,16876.0,1.32498463]
[1672966316346,0.84591698,16877.0,16876.0,1.89124463]
[1672966316614,0.66835424,16877.0,16876.0,1.85639044]
[1672966317874,0.66835424,16877.0,16876.0,1.79013044]